bitfinex/quotes_SOLUSD_20241222
["timestamp","ask_amount","ask_price","bid_price","bid_amount"]
[1734908869948,0.6998977,182.22,182.17,42.43685569]
[1734908870117,0.6998977,182.22,182.18,42.43685569]
[1734908870319,0.6998977,182.22,182.17,42.43685569]
[1734908873963,42.43685569,182.21,182.14,42.43685569]
[1734908874249,42.43685569,182.19,182.12,42.43685569]
[1734908874546,42.43685569,182.17,182.1,42.43685569]
[1734908875138,13.7204,182.21,182.1,42.43685569]
[1734908875347,42.43685569,182.18,182.11,42.43685569]
[1734908875514,41.1612,182.21,182.13,42.43685569]
[1734908875515,42.43685569,182.2,182.13,42.43685569]
[1734908875863,42.43685569,182.18,182.12,42.43685569]
[1734908876350,42.43685569,182.18,182.11,42.43685569]
[1734908877647,14.4198977,182.22,182.13,42.43685569]
[1734908877946,42.43685569,182.21,182.14,42.43685569]
[1734908879345,42.43685569,182.2,182.13,42.43685569]
[1734908879545,42.43685569,182.19,182.12,42.43685569]
[1734908879737,42.43685569,182.17,182.1,42.43685569]
[1734908880229,42.43685569,182.17,182.11,42.43685569]
[1734908880430,42.43685569,182.18,182.11,42.43685569]
[1734908881446,42.43685569,182.17,182.1,42.43685569]
[1734908881822,42.43685569,182.18,182.11,42.43685569]
[1734908882649,56.16005569,182.18,182.11,42.43685569]
[1734908882947,42.43685569,182.17,182.1,42.43685569]
[1734908883247,56.16005569,182.18,182.11,42.43685569]
[1734908883740,0.6998977,182.22,182.11,42.43685569]
[1734908884057,42.43685569,182.19,182.12,42.43685569]
[1734908884237,26.07632559,182.19,182.12,26.07632559]
[1734908885140,26.07632559,182.18,182.12,26.07632559]
[1734908885329,26.07632559,182.14,182.07,26.07632559]
[1734908885536,26.07632559,182.14,182.08,26.07632559]
[1734908885734,26.07632559,182.16,182.09,26.07632559]
[1734908886448,26.07632559,182.14,182.08,26.07632559]
[1734908886635,26.07632559,182.15,182.08,26.07632559]
[1734908887444,26.07632559,182.11,182.05,26.07632559]
[1734908887640,26.07632559,182.1,182.03,26.07632559]
[1734908887827,26.07632559,182.08,182.01,26.07632559]
[1734908888145,7.8796,182.11,181.98,26.07632559]
[1734908888342,26.07632559,182.06,181.99,26.07632559]
[1734908888538,26.07632559,182.07,182.0,26.07632559]
[1734908888744,26.07632559,182.06,181.99,26.07632559]
[1734908888941,26.07632559,182.08,182.01,26.07632559]
[1734908889141,26.07632559,182.09,182.03,26.07632559]
[1734908889944,13.7235,182.17,182.05,26.07632559]
[1734908890152,42.39730704,182.14,182.06,42.39730704]
[1734908890341,42.39730704,182.13,182.06,42.39730704]
[1734908890945,42.39730704,182.14,182.07,42.39730704]
[1734908891829,42.39730704,182.15,182.08,42.39730704]
[1734908892469,41.11318302,182.31,182.11,42.39730704]
[1734908892656,42.39730704,182.19,182.12,42.39730704]
[1734908892952,42.39730704,182.17,182.1,42.39730704]
[1734908893157,42.39730704,182.16,182.09,50.66960704]
[1734908893860,42.39730704,182.17,182.1,42.39730704]
[1734908894060,42.39730704,182.16,182.09,50.66960704]
[1734908894247,42.39730704,182.16,182.09,42.39730704]
[1734908894747,42.39730704,182.15,182.07,42.39730704]
[1734908895240,42.39730704,182.14,182.07,42.39730704]
[1734908895553,42.39730704,182.13,182.06,42.39730704]
[1734908896154,13.7225,182.19,182.06,42.39730704]
[1734908896155,42.39730704,182.14,182.06,42.39730704]
[1734908897178,42.39730704,182.09,182.02,42.39730704]
[1734908897534,42.39730704,182.08,182.01,42.39730704]
[1734908897855,42.39730704,182.09,182.02,42.39730704]
[1734908899458,42.39730704,182.08,182.01,42.39730704]
[1734908900453,42.39730704,182.07,182.0,50.31690704]
[1734908900662,42.39730704,182.07,182.0,48.80260704]
[1734908900852,13.7285,182.11,181.96,1.5047]
[1734908900853,42.39730704,182.05,181.97,42.39730704]
[1734908901059,42.39730704,182.05,181.98,42.39730704]
[1734908901266,42.39730704,182.06,181.99,42.39730704]
[1734908901450,42.39730704,182.05,181.98,42.39730704]
[1734908901769,42.39730704,182.05,181.97,42.39730704]
[1734908901966,42.39730704,182.04,181.97,42.39730704]
[1734908902174,42.39730704,182.03,181.96,50.23780704]
[1734908902463,42.39730704,182.01,181.94,42.39730704]
[1734908902672,42.39730704,182.0,181.93,42.39730704]
[1734908903267,42.39730704,182.0,181.92,44.05530704]
[1734908903570,42.39730704,181.99,181.92,42.39730704]
[1734908903756,42.39730704,181.94,181.88,43.98780704]
[1734908904068,42.39730704,181.93,181.86,42.39730704]
[1734908904252,42.39730704,181.94,181.87,42.39730704]
[1734908905466,42.39730704,181.93,181.86,42.39730704]
[1734908905651,42.39730704,181.91,181.84,42.39730704]
[1734908906163,42.39730704,181.94,181.87,42.39730704]
[1734908906470,42.39730704,181.98,181.92,42.39730704]
[1734908907367,42.39730704,181.98,181.91,42.39730704]
[1734908908074,42.39730704,182.01,181.95,42.39730704]
[1734908908249,44.00150704,182.02,181.95,42.39730704]
[1734908908451,42.39730704,182.05,181.98,42.39730704]
[1734908908767,42.39730704,182.06,181.99,42.39730704]
[1734908908955,1.557,182.07,182.0,42.39730704]
[1734908908956,43.95430704,182.07,182.0,42.39730704]
[1734908909155,42.39730704,182.07,182.0,42.39730704]
[1734908909650,42.39730704,182.12,182.05,42.39730704]
[1734908911054,42.39730704,182.13,182.06,42.39730704]
[1734908911443,42.39730704,182.14,182.07,42.39730704]
[1734908911643,42.39730704,182.16,182.08,42.39730704]
[1734908911951,42.39730704,182.15,182.08,42.39730704]
[1734908912864,42.39730704,182.15,182.03,0.82365105]
[1734908912865,42.39730704,182.17,182.09,42.39730704]
[1734908913867,42.39730704,182.18,182.05,7.38583671]
[1734908914045,42.39730704,182.2,182.13,42.39730704]
[1734908914247,56.81760474,182.22,182.15,42.39730704]
[1734908914874,56.81760474,182.22,182.14,42.39730704]
[1734908915674,42.39730704,182.21,182.14,42.39730704]
[1734908916272,42.39730704,182.19,182.12,42.39730704]
[1734908916568,42.39730704,182.18,182.11,42.39730704]
[1734908916751,42.39730704,182.16,182.09,42.39730704]
[1734908917576,42.39730704,182.14,182.07,42.39730704]
[1734908918660,42.39730704,182.13,182.06,42.39730704]
[1734908919963,42.39730704,182.12,182.05,42.39730704]
[1734908920163,42.39730704,182.13,182.05,42.39730704]
[1734908920477,42.39730704,182.13,182.06,42.39730704]
[1734908920977,27.4423,182.2,182.07,42.39730704]
[1734908921157,42.39730704,182.16,182.09,42.39730704]
[1734908921773,42.39730704,182.17,182.1,42.39730704]
[1734908921972,13.7219,182.19,182.03,0.82369082]
[1734908921973,42.39730704,182.18,182.11,42.39730704]
[1734908922278,42.39730704,182.2,182.13,42.39730704]
[1734908922458,42.39730704,182.21,182.14,42.39730704]
[1734908923959,0.6998977,182.22,182.16,42.39730704]
[1734908924157,0.6998977,182.22,182.17,42.39730704]
[1734908924460,0.6998977,182.22,182.18,42.39730704]
[1734908925178,0.6998977,182.22,182.19,42.39730704]
[1734908926080,0.6998977,182.22,182.17,42.39730704]
[1734908926276,43.09720474,182.22,182.15,42.39730704]
[1734908926477,42.39730704,182.21,182.13,42.39730704]
[1734908928080,42.39730704,182.19,182.12,42.39730704]
[1734908928285,42.39730704,182.2,182.13,42.39730704]
[1734908928762,42.39730704,182.19,182.12,42.39730704]
[1734908928972,42.39730704,182.17,182.1,42.39730704]
[1734908929259,42.39730704,182.19,182.12,42.39730704]
[1734908929676,42.39730704,182.2,182.13,42.39730704]
[1734908929983,0.6998977,182.22,182.16,42.39730704]
[1734908931173,0.6998977,182.22,182.1,0.82332508]
[1734908931174,0.6998977,182.22,182.18,42.39730704]
[1734908931379,0.6998977,182.22,182.19,42.39730704]
[1734908931574,0.6998977,182.22,182.17,42.39730704]
[1734908932086,0.6998977,182.22,182.18,42.39730704]
[1734908932381,0.6998977,182.22,182.21,42.39730704]
[1734908932966,0.6998977,182.22,182.19,42.39730704]
[1734908933762,0.6998977,182.22,182.18,42.39730704]
[1734908933970,0.6998977,182.22,182.16,42.39730704]
[1734908934166,0.6998977,182.22,182.19,42.39730704]
[1734908934576,0.6998977,182.22,182.21,42.39730704]
[1734908937192,0.6998977,182.22,182.21,43.22038364]
[1734908937389,0.6998977,182.22,182.21,42.39730704]
[1734908938888,0.6998977,182.22,182.19,42.39730704]
[1734908939103,0.6998977,182.22,182.17,42.39730704]
[1734908939281,0.6998977,182.22,182.18,42.39730704]
[1734908939591,0.6998977,182.22,182.19,42.39730704]
[1734908939796,0.6998977,182.22,182.21,42.39730704]
[1734908939965,0.6998977,182.22,182.2,42.39730704]
[1734908940669,0.6998977,182.22,182.19,42.39730704]
[1734908940963,0.6998977,182.22,182.18,42.39730704]
[1734908941170,0.6998977,182.22,182.16,42.39730704]
[1734908941486,0.6998977,182.22,182.19,42.39730704]
[1734908941686,0.6998977,182.22,182.18,42.39730704]
[1734908941893,0.6998977,182.22,182.19,42.39730704]
[1734908942079,0.6998977,182.22,182.16,42.39730704]
[1734908942691,43.09720474,182.22,182.15,42.39730704]
[1734908942900,42.39730704,182.2,182.12,42.39730704]
[1734908943299,0.6998977,182.22,182.16,42.39730704]
[1734908945295,42.39730704,182.19,182.11,42.39730704]
[1734908945591,42.39730704,182.17,182.09,42.39730704]
[1734908945798,6.6271,182.19,182.13,42.39730704]
[1734908945997,0.6998977,182.22,182.08,0.9490203]
[1734908946685,0.6998977,182.22,182.13,20.0]
[1734908946996,0.6998977,182.22,182.14,23.902374]
[1734908947205,0.6998977,182.22,182.2,42.39730704]
[1734908947390,0.6998977,182.22,182.21,42.39730704]
[1734908948876,0.6998977,182.22,182.2,42.39730704]
[1734908949072,0.6998977,182.22,182.21,42.39730704]
[1734908950106,0.6998977,182.22,182.2,42.39730704]
[1734908950312,0.6998977,182.22,182.19,42.39730704]
[1734908950613,0.6998977,182.22,182.18,42.39730704]
[1734908951911,0.6998977,182.22,182.19,42.39730704]
[1734908952077,0.6998977,182.22,182.18,42.39730704]
[1734908952517,0.6998977,182.22,182.17,42.39730704]
[1734908952812,0.6998977,182.22,182.16,42.39730704]
[1734908953309,0.6998977,182.22,182.09,1.5073]
[1734908953310,42.39730704,182.2,182.09,1.5073]
[1734908953537,42.39730704,182.2,182.13,42.39730704]
[1734908953901,0.6998977,182.22,182.16,42.39730704]
[1734908954091,0.6998977,182.22,182.17,42.39730704]
[1734908954292,0.6998977,182.22,182.19,42.39730704]
[1734908954803,0.6998977,182.22,182.18,42.39730704]
[1734908955011,0.6998977,182.22,182.19,42.39730704]
[1734908955592,0.6998977,182.22,182.18,42.39730704]
[1734908956036,0.6998977,182.22,182.19,42.39730704]
[1734908956236,0.6998977,182.22,182.21,26.05185284]
[1734908957612,0.6998977,182.22,182.2,26.05185284]
[1734908957823,0.6998977,182.22,182.19,26.05185284]
[1734908958131,0.6998977,182.22,182.18,26.05185284]
[1734908958292,0.6998977,182.22,182.15,26.05185284]
[1734908958495,0.6998977,182.22,182.17,26.05185284]
[1734908958800,0.6998977,182.22,182.19,26.05185284]
[1734908959211,0.6998977,182.22,182.17,26.05185284]
[1734908959396,0.6998977,182.22,182.15,26.05185284]
[1734908959732,26.05185284,182.19,182.12,26.05185284]
[1734908959933,26.05185284,182.2,182.12,26.05185284]
[1734908960109,0.6998977,182.22,182.15,26.05185284]
[1734908960295,0.6998977,182.22,182.11,0.12549]
[1734908960621,0.6998977,182.22,182.18,42.35909455]
[1734908961133,43.05899225,182.22,182.15,42.35909455]
[1734908961442,42.35909455,182.21,182.13,42.35909455]
[1734908961617,42.35909455,182.18,182.11,42.35909455]
[1734908962135,56.07949455,182.21,182.14,42.35909455]
[1734908962338,42.35909455,182.21,182.14,42.35909455]
[1734908962513,43.05899225,182.22,182.14,42.35909455]
[1734908962717,42.35909455,182.21,182.14,42.35909455]
[1734908962909,42.35909455,182.21,182.13,42.35909455]
[1734908963114,42.35909455,182.21,182.14,42.35909455]
[1734908964034,42.35909455,182.21,182.09,0.8234114]
[1734908964035,42.35909455,182.21,182.13,42.35909455]
[1734908964433,42.35909455,182.21,182.14,42.35909455]
[1734908964927,42.35909455,182.21,182.13,42.35909455]
[1734908965132,42.35909455,182.18,182.11,42.35909455]
[1734908965330,42.35909455,182.16,182.09,42.35909455]
[1734908965530,42.35909455,182.15,182.08,42.35909455]
[1734908965836,42.35909455,182.14,182.06,42.35909455]
[1734908966003,42.35909455,182.14,182.07,42.35909455]
[1734908966208,42.35909455,182.13,182.06,42.35909455]
[1734908966425,42.35909455,182.12,182.05,42.35909455]
[1734908966623,42.35909455,182.11,182.04,42.35909455]
[1734908966822,42.35909455,182.11,182.03,42.35909455]
[1734908967247,42.35909455,182.08,182.01,42.35909455]
[1734908967420,42.35909455,182.08,182.0,42.35909455]
[1734908967738,42.35909455,182.05,181.97,42.35909455]
[1734908968114,50.27549455,182.09,182.02,42.35909455]
[1734908968313,50.27549455,182.09,181.95,2.34486691]
[1734908968314,7.9164,182.09,182.03,42.35909455]
[1734908968718,50.27549455,182.14,182.07,42.35909455]
[1734908968938,50.27549455,182.14,182.08,42.35909455]
[1734908968939,7.9164,182.14,182.08,42.35909455]
[1734908969138,7.9164,182.14,182.09,42.35909455]
[1734908969327,6.2983,182.18,182.12,42.35909455]
[1734908970449,48.65739455,182.18,182.11,42.35909455]
[1734908970621,6.2983,182.18,182.12,42.35909455]
[1734908971131,42.35909455,182.2,182.13,42.35909455]
[1734908971437,43.91089455,182.21,182.14,42.35909455]
[1734908971621,1.5518,182.21,182.14,42.35909455]
[1734908971820,1.5518,182.21,182.15,42.35909455]
[1734908972236,1.5518,182.21,182.14,42.35909455]
[1734908975037,43.91089455,182.21,182.14,42.35909455]
[1734908975423,42.35909455,182.19,182.12,42.35909455]
[1734908975620,42.35909455,182.18,182.11,42.35909455]
[1734908975842,42.35909455,182.19,182.12,42.35909455]
[1734908976635,42.35909455,182.17,182.1,42.35909455]
[1734908976936,42.35909455,182.18,182.11,42.35909455]
[1734908977562,42.35909455,182.18,182.1,42.35909455]
[1734908977860,42.35909455,182.18,182.11,42.35909455]
[1734908978230,42.35909455,182.17,182.07,0.8235559]
[1734908978436,42.35909455,182.2,182.13,42.35909455]
[1734908978651,1.5518,182.21,182.15,42.35909455]
[1734908980033,1.5518,182.21,182.17,42.35909455]
[1734908980967,1.5518,182.21,182.15,42.35909455]
[1734908981263,1.5518,182.21,182.16,42.35909455]
[1734908981741,1.5518,182.21,182.14,42.35909455]
[1734908981949,42.35909455,182.2,182.13,42.35909455]
[1734908982159,26.08081643,182.18,182.11,26.08081643]
[1734908982346,15.2728,182.21,182.11,26.08081643]
[1734908982555,26.08081643,182.2,182.13,26.08081643]
[1734908982757,26.08081643,182.18,182.1,26.08081643]
[1734908983055,26.08081643,182.18,182.11,26.08081643]
[1734908983253,39.80351643,182.18,182.11,26.08081643]
[1734908984237,39.80351643,182.18,182.1,26.08081643]
[1734908985162,1.5518,182.21,182.09,26.08081643]
[1734908985163,26.08081643,182.16,182.09,26.08081643]
[1734908985389,26.08081643,182.12,182.05,26.08081643]
[1734908985680,26.08081643,182.1,182.03,26.08081643]
[1734908986563,26.08081643,182.11,182.04,26.08081643]
[1734908986749,26.08081643,182.1,182.03,26.08081643]
[1734908987335,26.08081643,182.08,182.01,26.08081643]
[1734908987534,6.0058,182.1,181.99,26.08081643]
[1734908987753,26.08081643,182.04,181.97,26.08081643]
[1734908987955,26.08081643,182.03,181.96,26.08081643]
[1734908988156,42.4410431,182.05,181.98,42.4410431]
[1734908988364,6.0058,182.1,181.91,2.44148703]
[1734908988657,56.1729431,182.06,181.99,42.4410431]
[1734908989063,42.4410431,182.05,181.98,42.4410431]
[1734908989550,56.1729431,182.06,181.99,42.4410431]
[1734908990268,48.4468431,182.1,182.03,42.4410431]
[1734908990563,6.0058,182.1,182.04,42.4410431]
[1734908990746,6.0058,182.1,182.05,42.4410431]
[1734908990954,6.0058,182.1,182.06,42.4410431]
[1734908991258,6.0058,182.1,182.05,42.4410431]
[1734908991662,6.0058,182.1,182.04,42.4410431]
[1734908992043,6.0058,182.1,182.05,42.4410431]
[1734908993162,6.0058,182.1,182.04,42.4410431]
[1734908993366,42.4410431,182.08,182.01,42.4410431]
[1734908994050,42.4410431,182.09,182.02,42.4410431]
[1734908994254,19.735,182.1,182.04,42.4410431]
[1734908995148,62.1760431,182.1,182.03,42.4410431]
[1734908996770,1.6029,182.12,182.05,42.4410431]
[1734908997066,1.6029,182.12,182.06,42.4410431]
[1734908998277,6.2679,182.15,182.1,42.4410431]
[1734908998660,6.2679,182.15,182.09,42.4410431]
[1734908999173,48.7089431,182.15,182.08,42.4410431]
[1734909000178,48.7089431,182.15,182.07,42.4410431]
[1734909000479,48.7089431,182.15,182.04,0.8236299]
[1734909000480,42.4410431,182.14,182.06,42.4410431]
[1734909000674,42.4410431,182.14,182.07,42.4410431]
[1734909000857,42.4410431,182.12,182.02,1.5437]
[1734909001062,42.4410431,182.11,182.04,42.4410431]
[1734909001381,42.4410431,182.09,182.02,42.4410431]
[1734909001689,23.776884,182.14,181.97,1.6297]
[1734909002049,42.4410431,182.08,182.0,42.4410431]
[1734909002249,42.4410431,182.07,182.0,42.4410431]
[1734909002450,42.4410431,182.08,182.0,42.4410431]
[1734909002648,42.4410431,182.05,181.97,42.4410431]
[1734909002847,42.4410431,182.01,181.94,42.4410431]
[1734909003071,42.4410431,182.0,181.93,42.4410431]
[1734909003670,42.4410431,181.98,181.91,42.4410431]
[1734909003870,42.4410431,181.96,181.89,42.4410431]
[1734909004071,42.4410431,181.96,181.86,6.6619]
[1734909004072,42.4410431,181.95,181.88,42.4410431]
[1734909004766,42.4410431,181.93,181.87,42.4410431]
[1734909004972,42.4410431,181.92,181.86,42.4410431]
[1734909005278,42.4410431,181.91,181.84,42.4410431]
[1734909005473,19.7932,181.97,181.83,42.4410431]
[1734909005474,42.4410431,181.9,181.83,42.4410431]
[1734909005671,42.4410431,181.87,181.81,42.4410431]
[1734909005872,42.4410431,181.86,181.79,42.4410431]
[1734909006168,42.4410431,181.85,181.73,6.192]
[1734909006387,13.746,181.88,181.77,42.4410431]
[1734909006565,42.4410431,181.82,181.73,6.192]
[1734909006773,42.4410431,181.8,181.74,42.4410431]
[1734909006976,42.4410431,181.8,181.73,42.4410431]
[1734909007176,42.4410431,181.79,181.72,42.4410431]
[1734909007487,42.4410431,181.78,181.71,42.4410431]
[1734909007962,42.4410431,181.77,181.7,42.4410431]
[1734909008585,42.4410431,181.75,181.69,42.4410431]
[1734909008776,42.4410431,181.75,181.68,42.4410431]
[1734909009373,42.4410431,181.8,181.74,42.4410431]
[1734909009568,42.4410431,181.82,181.75,42.4410431]
[1734909010381,42.4410431,181.8,181.73,42.4410431]
[1734909011482,42.4410431,181.83,181.71,42.4410431]
[1734909011663,42.4410431,181.85,181.78,42.4410431]
[1734909011862,42.4410431,181.83,181.76,42.4410431]
[1734909012077,42.4410431,181.81,181.74,42.4410431]
[1734909012558,42.4410431,181.8,181.73,42.4410431]
[1734909012902,42.4410431,181.83,181.75,42.4410431]
[1734909013061,42.4410431,181.83,181.76,42.4410431]
[1734909013262,20.2245,181.87,181.7,23.776884]
[1734909013263,42.4410431,181.81,181.74,42.4410431]
[1734909013462,42.4410431,181.79,181.72,42.4410431]
[1734909013685,42.4410431,181.76,181.69,42.4410431]
[1734909013985,13.7497,181.83,181.68,42.4410431]
[1734909013986,42.4410431,181.75,181.68,42.4410431]
[1734909014184,42.4410431,181.73,181.66,42.4410431]
[1734909015064,42.4410431,181.73,181.67,42.4410431]
[1734909015396,42.4410431,181.74,181.67,42.4410431]
[1734909015560,42.4410431,181.75,181.68,42.4410431]
[1734909015997,48.5745431,181.76,181.68,42.4410431]
[1734909016370,42.4410431,181.75,181.68,42.4410431]
[1734909016788,13.7537,181.77,181.71,42.4410431]
[1734909016992,44.0283431,181.82,181.75,42.4410431]
[1734909017164,42.4410431,181.81,181.74,42.4410431]
[1734909017359,15.3375,181.82,181.67,20.82518151]
[1734909017565,42.4410431,181.8,181.72,42.4410431]
[1734909017874,15.3375,181.82,181.74,42.4410431]
[1734909018077,42.4410431,181.81,181.74,42.4410431]
[1734909018480,15.3375,181.82,181.75,42.4410431]
[1734909018481,57.7785431,181.82,181.75,42.4410431]
[1734909019091,15.3375,181.82,181.76,42.4410431]
[1734909019666,15.3375,181.82,181.67,20.0]
[1734909019667,57.7785431,181.82,181.74,42.4410431]
[1734909019876,13.7513,181.8,181.73,42.4410431]
[1734909020084,42.4410431,181.79,181.72,42.4410431]
[1734909020290,13.7513,181.8,181.73,42.4410431]
[1734909020585,13.7513,181.8,181.75,42.4410431]
[1734909020792,13.7513,181.8,181.74,42.4410431]
[1734909021201,13.7513,181.8,181.73,42.4410431]
[1734909021493,20.0,181.77,181.72,42.4410431]
[1734909021668,20.0,181.76,181.7,42.4410431]
[1734909021872,42.4410431,181.75,181.68,42.4410431]
[1734909022187,42.4410431,181.75,181.67,42.4410431]
[1734909022567,33.7539,181.77,181.59,2.3196977]
[1734909022568,20.0,181.71,181.66,42.4410431]
[1734909023188,48.8653431,181.74,181.68,42.4410431]
[1734909023189,6.4243,181.74,181.68,42.4410431]
[1734909023371,6.4243,181.74,181.69,42.4410431]
[1734909023882,6.4243,181.74,181.7,42.4410431]
[1734909024194,13.7539,181.77,181.71,42.4410431]
[1734909024580,13.7539,181.77,181.7,42.4410431]
[1734909025291,56.1949431,181.77,181.7,42.4410431]
[1734909025890,20.0,181.72,181.66,42.4410431]
[1734909026191,42.4410431,181.71,181.64,42.4410431]
[1734909027190,56.1992431,181.71,181.65,42.4410431]
[1734909027379,13.7582,181.71,181.66,42.4410431]
[1734909027692,13.7582,181.71,181.65,42.4410431]
[1734909028267,27.5072,181.77,181.59,1.52561862]
[1734909028268,42.4410431,181.75,181.68,42.4410431]
[1734909028464,20.0,181.71,181.66,42.4410431]
[1734909029167,20.0,181.71,181.67,42.4410431]
[1734909029384,44.0564431,181.77,181.7,42.4410431]
[1734909029567,15.3692,181.77,181.71,42.4410431]
[1734909029774,15.3692,181.77,181.73,42.4410431]
[1734909030194,6.4243,181.78,181.73,42.4410431]
[1734909030390,13.7514,181.8,181.74,42.4410431]
[1734909030595,13.7498,181.82,181.76,42.4410431]
[1734909031402,42.4410431,181.84,181.76,42.4410431]
[1734909031769,23.776884,181.83,181.76,42.4410431]
[1734909032096,20.0,181.8,181.76,42.4410431]
[1734909032483,20.0,181.8,181.75,42.4410431]
[1734909032677,13.7501,181.82,181.76,42.4410431]
[1734909032884,7.5876,181.86,181.79,42.4410431]
[1734909033199,21.3351,181.86,181.81,42.4410431]
[1734909033370,21.3351,181.86,181.8,42.4410431]
[1734909033569,42.4410431,181.84,181.76,42.4410431]
[1734909033793,42.4410431,181.81,181.74,42.4410431]
[1734909034091,21.3351,181.86,181.77,42.4410431]
[1734909034092,42.4410431,181.85,181.77,42.4410431]
[1734909034291,42.4410431,181.85,181.78,42.4410431]
[1734909034474,20.0,181.83,181.79,42.4410431]
[1734909034672,21.3351,181.86,181.79,42.4410431]
[1734909034876,7.5876,181.86,181.81,42.4410431]
[1734909035792,56.1857431,181.89,181.75,0.82492171]
[1734909036097,13.7447,181.89,181.83,42.4410431]
[1734909037094,42.4410431,181.85,181.78,42.4410431]
[1734909037309,42.4410431,181.82,181.75,42.4410431]
[1734909037686,42.4410431,181.83,181.76,42.4410431]
[1734909037896,20.0,181.82,181.78,42.4410431]
[1734909038093,42.4410431,181.87,181.79,42.4410431]
[1734909038488,13.7447,181.89,181.82,42.4410431]
[1734909038979,7.8293,181.91,181.84,42.4410431]
[1734909039904,50.2703431,181.91,181.84,42.4410431]
[1734909040198,20.0,181.88,181.82,42.4410431]
[1734909040574,20.0,181.88,181.81,42.4410431]
[1734909040774,42.4410431,181.86,181.79,42.4410431]
[1734909040992,42.4410431,181.87,181.79,42.4410431]
[1734909041189,42.4410431,181.87,181.8,42.4410431]
[1734909041596,76.1868431,181.88,181.8,42.4410431]
[1734909042099,13.7458,181.88,181.82,42.4410431]
[1734909042397,13.7458,181.88,181.83,42.4410431]
[1734909042781,50.2703431,181.91,181.84,42.4410431]
[1734909042979,42.4410431,181.9,181.83,42.4410431]
[1734909043189,42.4410431,181.9,181.82,42.4410431]
[1734909043503,20.0,181.87,181.8,42.4410431]
[1734909043705,42.4410431,181.88,181.8,42.4410431]
[1734909044686,56.1866431,181.88,181.81,42.4410431]
[1734909045001,42.4410431,181.82,181.72,0.82493089]
[1734909045308,42.4410431,181.81,181.74,42.4410431]
[1734909045478,42.4410431,181.82,181.74,42.4410431]
[1734909045801,42.4410431,181.82,181.76,42.4410431]
[1734909046002,41.2362,181.88,181.76,42.4410431]
[1734909046003,27.4906,181.88,181.76,42.4410431]
[1734909046206,42.4410431,181.83,181.76,42.4410431]
[1734909047179,42.4410431,181.85,181.76,42.4410431]
[1734909047705,20.0,181.82,181.76,42.4410431]
[1734909048779,20.0,181.82,181.77,42.4410431]
[1734909048976,20.0,181.82,181.76,42.4410431]
[1734909049177,42.4410431,181.81,181.73,42.4410431]
[1734909049385,42.4410431,181.81,181.71,42.4410431]
[1734909049386,42.4410431,181.79,181.71,42.4410431]
[1734909049904,42.4410431,181.79,181.72,42.4410431]
[1734909050102,42.4410431,181.79,181.71,42.4410431]
[1734909050283,13.7506,181.81,181.71,42.4410431]
[1734909050284,20.0,181.77,181.71,42.4410431]
[1734909050485,20.0,181.77,181.69,42.4410431]
[1734909050486,42.4410431,181.77,181.69,42.4410431]
[1734909051812,42.4410431,181.75,181.67,42.4410431]
[1734909051995,42.4410431,181.74,181.67,42.4410431]
[1734909052311,42.4410431,181.73,181.66,42.4410431]
[1734909052608,13.7544,181.76,181.69,42.4410431]
[1734909052799,13.7544,181.76,181.7,42.4410431]
[1734909052999,6.1764,181.81,181.71,42.4410431]
[1734909053000,42.4410431,181.78,181.71,42.4410431]
[1734909053180,56.1931431,181.79,181.72,42.4410431]
[1734909053618,42.4410431,181.78,181.71,42.4410431]
[1734909055593,42.4410431,181.76,181.69,42.4410431]
[1734909055801,42.4410431,181.75,181.68,42.4410431]
[1734909056188,42.4410431,181.74,181.67,42.4410431]
[1734909056401,62.4410431,181.74,181.66,42.4410431]
[1734909056718,20.0,181.72,181.68,42.4410431]
[1734909057213,20.0,181.72,181.65,42.4410431]
[1734909057711,20.0,181.72,181.66,42.4410431]
[1734909057886,20.0,181.72,181.68,42.4410431]
[1734909058289,42.4410431,181.77,181.7,42.4410431]
[1734909059910,42.4410431,181.77,181.69,42.4410431]
[1734909060887,42.4410431,181.74,181.67,42.4410431]
[1734909061203,20.0,181.73,181.69,42.4410431]
[1734909061410,13.754,181.77,181.69,42.4410431]
[1734909061411,56.1950431,181.77,181.69,42.4410431]
[1734909061613,20.0,181.74,181.69,42.4410431]
[1734909062419,20.0,181.74,181.69,26.19937081]
[1734909062594,39.95337081,181.77,181.71,26.19937081]
[1734909062792,26.19937081,181.76,181.69,26.19937081]
[1734909063018,46.19937081,181.74,181.66,26.19937081]
[1734909063219,46.19937081,181.73,181.65,26.19937081]
[1734909064019,26.19937081,181.72,181.64,26.19937081]
[1734909064316,26.19937081,181.7,181.63,26.19937081]
[1734909064493,26.19937081,181.71,181.63,26.19937081]
[1734909064695,13.7589,181.7,181.63,26.19937081]
[1734909065017,13.7589,181.7,181.64,26.19937081]
[1734909065315,33.7569,181.73,181.68,26.19937081]
[1734909065499,20.0,181.72,181.68,26.19937081]
[1734909065695,26.19937081,181.71,181.63,0.82549654]
[1734909066011,26.19937081,181.69,181.62,26.19937081]
[1734909066196,26.19937081,181.71,181.64,26.19937081]